[Event "*** SCC Grand Prix: Titled Tuesday Blitz"]
[Site "Chess.com"]
[Date "2020.09.08"]
[Round "2"]
[White "f3andwins"]
[Black "Zmof"]
[Result "1-0"]
[WhiteElo "2437"]
[BlackElo "2216"]
[TimeControl "180+1"]
[EndTime "10:17:56 PDT"]
[Termination "f3andwins won by resignation"]

1. e4 {[%clk 0:03:00.9]} 1... c5 {[%clk 0:02:58.2]} 2. Nf3 {[%clk 0:03:01.4]}
2... Nc6 {[%clk 0:02:58]} 3. d4 {[%clk 0:03:01.9]} 3... cxd4 {[%clk 0:02:58.5]}
4. Nxd4 {[%clk 0:03:02.8]} 4... Qb6 {[%clk 0:02:58.8]} 5. Nb3 {[%clk 0:03:02.3]}
5... Nf6 {[%clk 0:02:58.5]} 6. Nc3 {[%clk 0:03:02.2]} 6... e6 {[%clk 0:02:58.4]}
7. Be3 {[%clk 0:02:57.1]} 7... Qc7 {[%clk 0:02:57.8]} 8. Bd3 {[%clk 0:02:54.3]}
8... d6 {[%clk 0:02:56.4]} 9. f4 {[%clk 0:02:54.5]} 9... a6 {[%clk 0:02:55.8]}
10. Qf3 {[%clk 0:02:53.9]} 10... Be7 {[%clk 0:02:51.7]} 11. O-O-O {[%clk
0:02:53.7]} 11... b5 {[%clk 0:02:51.5]} 12. g4 {[%clk 0:02:44.3]} 12... Bb7
{[%clk 0:02:50]} 13. g5 {[%clk 0:02:44.5]} 13... Nd7 {[%clk 0:02:50.6]} 14. h4
{[%clk 0:02:43]} 14... Nb4 {[%clk 0:02:42.5]} 15. h5 {[%clk 0:02:37.6]} 15...
O-O-O {[%clk 0:02:35.8]} 16. Bxb5 {[%clk 0:02:24.7]} 16... axb5 {[%clk
0:02:30.1]} 17. a3 {[%clk 0:02:25.2]} 17... Nc5 {[%clk 0:02:07.9]} 18. Kb1
{[%clk 0:02:08.9]} 18... Nxe4 {[%clk 0:01:43.8]} 19. Qh3 {[%clk 0:01:30.8]}
19... Nxc3+ {[%clk 0:01:32.4]} 20. bxc3 {[%clk 0:01:30.9]} 20... Bxh1 {[%clk
0:01:32.5]} 21. Qxh1 {[%clk 0:01:29.8]} 21... Nc6 {[%clk 0:01:28.8]} 22. Nd4
{[%clk 0:01:28.4]} 22... Nxd4 {[%clk 0:01:26.7]} 23. Bxd4 {[%clk 0:01:29.3]}
23... e5 {[%clk 0:01:18.1]} 24. fxe5 {[%clk 0:01:27.8]} 24... dxe5 {[%clk
0:01:18]} 25. Qa8+ {[%clk 0:01:28.5]} 25... Qb8 {[%clk 0:01:17.4]} 26. Qc6+
{[%clk 0:01:28.1]} 26... Qc7 {[%clk 0:01:14.7]} 27. Qa8+ {[%clk 0:01:28.4]}
27... Kd7 {[%clk 0:00:39.5]} 28. Bxe5+ {[%clk 0:00:43.3]} 28... Ke6 {[%clk
0:00:38.6]} 29. Qa6+ {[%clk 0:00:40.3]} 29... Bd6 {[%clk 0:00:37.9]} 30. Bxg7
{[%clk 0:00:36.3]} 30... Ra8 {[%clk 0:00:32.8]} 31. Re1+ {[%clk 0:00:33.6]}
31... Kd7 {[%clk 0:00:28.9]} 32. Qxb5+ {[%clk 0:00:30.5]} 32... Qc6 {[%clk
0:00:29.4]} 33. Qf5+ {[%clk 0:00:30.6]} 33... Kc7 {[%clk 0:00:30]} 34. Qxf7+
{[%clk 0:00:30.9]} 34... Qd7 {[%clk 0:00:26.5]} 35. Qc4+ {[%clk 0:00:27]} 35...
Qc6 {[%clk 0:00:26.7]} 36. Qxc6+ {[%clk 0:00:23.3]} 36... Kxc6 {[%clk
0:00:26.7]} 37. Bxh8 {[%clk 0:00:24.2]} 37... Rxh8 {[%clk 0:00:26.4]} 38. Re6
{[%clk 0:00:20]} 38... Rb8+ {[%clk 0:00:22.9]} 39. Ka2 {[%clk 0:00:18.4]} 39...
Ra8 {[%clk 0:00:21.4]} 40. Rh6 {[%clk 0:00:18.1]} 40... Rxa3+ {[%clk 0:00:21.2]}
41. Kb2 {[%clk 0:00:18.8]} 41... Ra7 {[%clk 0:00:21.7]} 42. c4 {[%clk
0:00:17.3]} 42... Kc5 {[%clk 0:00:20.8]} 43. g6 {[%clk 0:00:15.5]} 43... hxg6
{[%clk 0:00:20.8]} 44. Rxg6 {[%clk 0:00:14.8]} 44... Rg7 {[%clk 0:00:21.2]} 45.
Rxg7 {[%clk 0:00:14.8]} 1-0

[Event "*** SCC Grand Prix: Titled Tuesday Blitz"]
[Site "Chess.com"]
[Date "2020.09.08"]
[Round "2"]
[White "BogdanDeac"]
[Black "chessdjw"]
[Result "1-0"]
[WhiteElo "2932"]
[BlackElo "2574"]
[TimeControl "180+1"]
[EndTime "10:18:00 PDT"]
[Termination "BogdanDeac won by resignation"]

1. e4 {[%clk 0:03:00.9]} 1... c5 {[%clk 0:02:59]} 2. Nf3 {[%clk 0:03:00.7]} 2...
d6 {[%clk 0:02:58.3]} 3. d4 {[%clk 0:03:00.4]} 3... cxd4 {[%clk 0:02:58.6]} 4.
Nxd4 {[%clk 0:03:01.3]} 4... Nf6 {[%clk 0:02:58.7]} 5. Nc3 {[%clk 0:03:01.8]}
5... a6 {[%clk 0:02:59]} 6. Bd3 {[%clk 0:03:01]} 6... g6 {[%clk 0:02:57.2]} 7.
f3 {[%clk 0:02:59.8]} 7... Bg7 {[%clk 0:02:57.3]} 8. Be3 {[%clk 0:02:59.6]} 8...
Nc6 {[%clk 0:02:38.9]} 9. Qd2 {[%clk 0:02:57]} 9... Bd7 {[%clk 0:02:35.8]} 10.
O-O-O {[%clk 0:02:46.4]} 10... Rc8 {[%clk 0:02:36.1]} 11. g4 {[%clk 0:02:43.7]}
11... Ne5 {[%clk 0:02:25.8]} 12. h4 {[%clk 0:02:15.4]} 12... Qa5 {[%clk
0:02:23.8]} 13. Kb1 {[%clk 0:02:10.8]} 13... Rxc3 {[%clk 0:02:11.6]} 14. Qxc3
{[%clk 0:02:04.4]} 14... Qxc3 {[%clk 0:02:11.3]} 15. bxc3 {[%clk 0:02:04.9]}
15... O-O {[%clk 0:02:10.5]} 16. h5 {[%clk 0:02:04.6]} 16... Rc8 {[%clk
0:02:09.1]} 17. Kb2 {[%clk 0:02:03.2]} 17... b5 {[%clk 0:01:51.3]} 18. hxg6
{[%clk 0:01:48.3]} 18... hxg6 {[%clk 0:01:50.5]} 19. Bh6 {[%clk 0:01:44.1]}
19... Bh8 {[%clk 0:01:42.1]} 20. Be3 {[%clk 0:01:26.2]} 20... Bg7 {[%clk
0:01:41.4]} 21. Rh3 {[%clk 0:01:19.4]} 21... Nc4+ {[%clk 0:00:55.6]} 22. Bxc4
{[%clk 0:01:15.1]} 22... Rxc4 {[%clk 0:00:56.5]} 23. Rd3 {[%clk 0:00:30.4]}
23... Bc8 {[%clk 0:00:54.7]} 24. Nb3 {[%clk 0:00:28.3]} 24... Nd7 {[%clk
0:00:52.8]} 25. Bd4 {[%clk 0:00:27.1]} 25... Ne5 {[%clk 0:00:50.2]} 26. Bxe5
{[%clk 0:00:21.3]} 26... Bxe5 {[%clk 0:00:51.1]} 27. a3 {[%clk 0:00:20.8]} 27...
g5 {[%clk 0:00:50.1]} 28. Rh5 {[%clk 0:00:17.2]} 28... f6 {[%clk 0:00:48.7]} 29.
Rh1 {[%clk 0:00:14.5]} 29... Kg7 {[%clk 0:00:47.8]} 30. Nd4 {[%clk 0:00:14.3]}
30... Rc7 {[%clk 0:00:44]} 31. Rhd1 {[%clk 0:00:12]} 31... Bd7 {[%clk 0:00:41]}
32. Nb3 {[%clk 0:00:09.6]} 32... Be6 {[%clk 0:00:38.1]} 33. Nd4 {[%clk
0:00:08.4]} 33... Bf7 {[%clk 0:00:35.2]} 34. Rh1 {[%clk 0:00:06.8]} 34... Kf8
{[%clk 0:00:27.2]} 35. Rh8+ {[%clk 0:00:05.6]} 35... Bg8 {[%clk 0:00:27.2]} 36.
Ne6+ {[%clk 0:00:04.9]} 36... Kf7 {[%clk 0:00:22.9]} 37. Nxc7 {[%clk 0:00:05.5]}
37... Kg7 {[%clk 0:00:23.1]} 38. Rxg8+ {[%clk 0:00:05.3]} 38... Kxg8 {[%clk
0:00:23.3]} 39. Nxa6 {[%clk 0:00:06.2]} 1-0

[Event "*** SCC Grand Prix: Titled Tuesday Blitz"]
[Site "Chess.com"]
[Date "2020.09.08"]
[Round "2"]
[White "fireheart92"]
[Black "m_ezat"]
[Result "0-1"]
[WhiteElo "2859"]
[BlackElo "2576"]
[TimeControl "180+1"]
[EndTime "10:18:01 PDT"]
[Termination "m_ezat won on time"]

1. e4 {[%clk 0:03:00.9]} 1... c6 {[%clk 0:02:59.8]} 2. d4 {[%clk 0:02:50.1]}
2... d5 {[%clk 0:03:00.2]} 3. exd5 {[%clk 0:02:45.5]} 3... cxd5 {[%clk
0:02:59.7]} 4. c4 {[%clk 0:02:45.8]} 4... Nf6 {[%clk 0:02:59.5]} 5. Nc3 {[%clk
0:02:42.7]} 5... g6 {[%clk 0:02:59.2]} 6. Qb3 {[%clk 0:02:38.5]} 6... Bg7 {[%clk
0:02:58.7]} 7. cxd5 {[%clk 0:02:38.2]} 7... O-O {[%clk 0:02:58.2]} 8. Be2 {[%clk
0:02:37.4]} 8... Na6 {[%clk 0:02:54.3]} 9. Bf3 {[%clk 0:02:37.3]} 9... Qb6
{[%clk 0:02:54.4]} 10. Qxb6 {[%clk 0:02:32.8]} 10... axb6 {[%clk 0:02:53.6]} 11.
Nge2 {[%clk 0:02:32.8]} 11... Nb4 {[%clk 0:02:52.6]} 12. O-O {[%clk 0:02:28.8]}
12... Rd8 {[%clk 0:02:51.6]} 13. d6 {[%clk 0:02:16.3]} 13... Rxd6 {[%clk
0:02:41.1]} 14. Bf4 {[%clk 0:02:15.7]} 14... Rd7 {[%clk 0:02:41.6]} 15. Bg3
{[%clk 0:01:57.2]} 15... g5 {[%clk 0:02:15.8]} 16. h3 {[%clk 0:01:50.5]} 16...
h5 {[%clk 0:02:15.1]} 17. a3 {[%clk 0:01:17.1]} 17... Nd3 {[%clk 0:02:11]} 18.
Rab1 {[%clk 0:00:31.6]} 18... g4 {[%clk 0:02:10]} 19. hxg4 {[%clk 0:00:31.5]}
19... hxg4 {[%clk 0:02:10.6]} 20. Be4 {[%clk 0:00:31.8]} 20... Nxe4 {[%clk
0:02:11.1]} 21. Nxe4 {[%clk 0:00:32.7]} 21... Bxd4 {[%clk 0:01:52.2]} 22. Rfd1
{[%clk 0:00:31.9]} 22... Bg7 {[%clk 0:01:49.4]} 23. N4c3 {[%clk 0:00:26]} 23...
b5 {[%clk 0:01:31.8]} 24. Nxb5 {[%clk 0:00:23]} 24... Nxb2 {[%clk 0:01:31.3]}
25. Rxd7 {[%clk 0:00:22.5]} 25... Bxd7 {[%clk 0:01:31.2]} 26. Nbd4 {[%clk
0:00:21.3]} 26... Rxa3 {[%clk 0:01:26.5]} 27. Rxb2 {[%clk 0:00:17]} 27... b5
{[%clk 0:01:16.7]} 28. Rb1 {[%clk 0:00:13.4]} 28... e5 {[%clk 0:00:31.4]} 29.
Nxb5 {[%clk 0:00:12.6]} 29... Rd3 {[%clk 0:00:32]} 30. Nbc3 {[%clk 0:00:06.7]}
30... f5 {[%clk 0:00:32.1]} 31. Rd1 {[%clk 0:00:05.9]} 31... e4 {[%clk
0:00:29.4]} 32. Rc1 {[%clk 0:00:01.8]} 32... e3 {[%clk 0:00:24.5]} 33. fxe3
{[%clk 0:00:01.7]} 33... Rxe3 {[%clk 0:00:22.9]} 34. Bf2 {[%clk 0:00:02.1]}
34... Re8 {[%clk 0:00:19.3]} 35. Nf4 {[%clk 0:00:01.3]} 35... Rc8 {[%clk
0:00:19.4]} 0-1

[Event "*** SCC Grand Prix: Titled Tuesday Blitz"]
[Site "Chess.com"]
[Date "2020.09.08"]
[Round "2"]
[White "Brave_spirit12"]
[Black "queen_iryna"]
[Result "1-0"]
[WhiteElo "2514"]
[BlackElo "2288"]
[TimeControl "180+1"]
[EndTime "10:18:01 PDT"]
[Termination "Brave_spirit12 won on time"]

1. e4 {[%clk 0:03:00.9]} 1... d6 {[%clk 0:02:58.5]} 2. d4 {[%clk 0:03:00.9]}
2... Nf6 {[%clk 0:02:58]} 3. Nc3 {[%clk 0:03:01.1]} 3... e5 {[%clk 0:02:57.6]}
4. Nf3 {[%clk 0:02:59.7]} 4... Nbd7 {[%clk 0:02:57.3]} 5. Bg5 {[%clk 0:02:59.4]}
5... Be7 {[%clk 0:02:50.8]} 6. Qd2 {[%clk 0:02:58.8]} 6... h6 {[%clk 0:02:46.6]}
7. Bh4 {[%clk 0:02:58.6]} 7... Nxe4 {[%clk 0:02:31.2]} 8. Nxe4 {[%clk
0:02:45.1]} 8... Bxh4 {[%clk 0:02:30.8]} 9. dxe5 {[%clk 0:02:45.6]} 9... Nxe5
{[%clk 0:02:15.2]} 10. Bb5+ {[%clk 0:02:05.7]} 10... Bd7 {[%clk 0:01:34]} 11.
Nxe5 {[%clk 0:02:01.4]} 11... dxe5 {[%clk 0:01:33.5]} 12. Bxd7+ {[%clk
0:01:54.7]} 12... Qxd7 {[%clk 0:01:34.4]} 13. Qb4 {[%clk 0:01:55]} 13... Qd4
{[%clk 0:01:16.2]} 14. Qb5+ {[%clk 0:01:20.3]} 14... c6 {[%clk 0:01:05.6]} 15.
Qe2 {[%clk 0:01:20.7]} 15... O-O {[%clk 0:01:01]} 16. c3 {[%clk 0:01:16.7]}
16... Qb6 {[%clk 0:00:55.6]} 17. O-O {[%clk 0:01:16.3]} 17... Rad8 {[%clk
0:00:51.1]} 18. b4 {[%clk 0:01:15.2]} 18... Be7 {[%clk 0:00:48.4]} 19. a4 {[%clk
0:01:13.9]} 19... f5 {[%clk 0:00:45]} 20. Nd2 {[%clk 0:01:02.7]} 20... e4 {[%clk
0:00:40.6]} 21. Nc4 {[%clk 0:00:59.6]} 21... Qc7 {[%clk 0:00:36.6]} 22. b5
{[%clk 0:00:56]} 22... Bf6 {[%clk 0:00:32.7]} 23. Rac1 {[%clk 0:00:50.2]} 23...
Rd3 {[%clk 0:00:31.8]} 24. Ne3 {[%clk 0:00:48.6]} 24... Qd7 {[%clk 0:00:20.3]}
25. Rfd1 {[%clk 0:00:32.9]} 25... Rd8 {[%clk 0:00:18.9]} 26. c4 {[%clk 0:00:18]}
26... Bg5 {[%clk 0:00:15.5]} 27. g3 {[%clk 0:00:09.4]} 27... Bxe3 {[%clk
0:00:12.9]} 28. Rxd3 {[%clk 0:00:08.5]} 28... Qxd3 {[%clk 0:00:11.9]} 29. Qxd3
{[%clk 0:00:08.5]} 29... Rxd3 {[%clk 0:00:11.8]} 30. fxe3 {[%clk 0:00:08.9]}
30... Rxe3 {[%clk 0:00:12.7]} 31. a5 {[%clk 0:00:09]} 31... Ra3 {[%clk
0:00:12.4]} 32. a6 {[%clk 0:00:08.8]} 1-0

[Event "*** SCC Grand Prix: Titled Tuesday Blitz"]
[Site "Chess.com"]
[Date "2020.09.08"]
[Round "2"]
[White "zmeeed67"]
[Black "MrrRefrao"]
[Result "1-0"]
[WhiteElo "2439"]
[BlackElo "2220"]
[TimeControl "180+1"]
[EndTime "10:18:01 PDT"]
[Termination "zmeeed67 won on time"]

1. e4 {[%clk 0:03:00.9]} 1... c5 {[%clk 0:02:59.2]} 2. g3 {[%clk 0:03:00.4]}
2... d5 {[%clk 0:02:58.8]} 3. exd5 {[%clk 0:02:59.9]} 3... Qxd5 {[%clk
0:02:59.7]} 4. Qf3 {[%clk 0:03:00.2]} 4... Qxf3 {[%clk 0:02:56.1]} 5. Nxf3
{[%clk 0:03:00.2]} 5... Nc6 {[%clk 0:02:21.9]} 6. Bg2 {[%clk 0:02:58.8]} 6... e5
{[%clk 0:02:20.1]} 7. O-O {[%clk 0:02:56]} 7... f6 {[%clk 0:02:04.7]} 8. c3
{[%clk 0:02:32.8]} 8... Kf7 {[%clk 0:01:58.1]} 9. d4 {[%clk 0:02:19.2]} 9...
cxd4 {[%clk 0:01:47.9]} 10. cxd4 {[%clk 0:02:18.9]} 10... e4 {[%clk 0:01:37.5]}
11. Nfd2 {[%clk 0:02:00.4]} 11... f5 {[%clk 0:01:35.8]} 12. d5 {[%clk
0:01:45.3]} 12... Nd4 {[%clk 0:01:26.5]} 13. Nc3 {[%clk 0:01:44.6]} 13... Bd7
{[%clk 0:01:14.5]} 14. Nb3 {[%clk 0:01:29.5]} 14... Nxb3 {[%clk 0:00:56.3]} 15.
axb3 {[%clk 0:01:29.4]} 15... Nf6 {[%clk 0:00:56.6]} 16. Be3 {[%clk 0:01:28.5]}
16... a6 {[%clk 0:00:54.8]} 17. f3 {[%clk 0:01:15.8]} 17... exf3 {[%clk
0:00:47.9]} 18. Bxf3 {[%clk 0:01:14.8]} 18... Bb4 {[%clk 0:00:34.7]} 19. Rad1
{[%clk 0:01:13.6]} 19... Rac8 {[%clk 0:00:31.1]} 20. Bd4 {[%clk 0:01:04.7]}
20... Rhd8 {[%clk 0:00:26.9]} 21. Kg2 {[%clk 0:01:04.4]} 21... Bc5 {[%clk
0:00:19]} 22. Be5 {[%clk 0:00:59.7]} 22... Be8 {[%clk 0:00:16]} 23. Rfe1 {[%clk
0:00:55.4]} 23... g6 {[%clk 0:00:09.9]} 24. d6 {[%clk 0:00:49.6]} 24... Bc6
{[%clk 0:00:09.8]} 25. Bxf6 {[%clk 0:00:34.2]} 25... Kxf6 {[%clk 0:00:08.2]} 26.
Bxc6 {[%clk 0:00:28.7]} 26... Rxc6 {[%clk 0:00:08]} 27. Nd5+ {[%clk 0:00:28.7]}
27... Kg5 {[%clk 0:00:05]} 28. h4+ {[%clk 0:00:27.2]} 28... Kh6 {[%clk
0:00:05.2]} 29. Nf6 {[%clk 0:00:20.5]} 29... Rdxd6 {[%clk 0:00:03.1]} 30. Rxd6
{[%clk 0:00:18.2]} 30... Rxd6 {[%clk 0:00:02.9]} 31. Ne8 {[%clk 0:00:17.6]}
31... Rd2+ {[%clk 0:00:03.8]} 32. Kh3 {[%clk 0:00:17.1]} 32... Bd4 {[%clk
0:00:02.4]} 33. Re7 {[%clk 0:00:13.9]} 33... Bg1 {[%clk 0:00:01.5]} 34. g4
{[%clk 0:00:12.2]} 1-0

[Event "*** SCC Grand Prix: Titled Tuesday Blitz"]
[Site "Chess.com"]
[Date "2020.09.08"]
[Round "2"]
[White "Evgeny81"]
[Black "MattyDPerrine"]
[Result "1-0"]
[WhiteElo "2642"]
[BlackElo "2332"]
[TimeControl "180+1"]
[EndTime "10:18:02 PDT"]
[Termination "Evgeny81 won on time"]

1. Nf3 {[%clk 0:03:00.9]} 1... c5 {[%clk 0:02:59.2]} 2. c4 {[%clk 0:03:00.8]}
2... Nf6 {[%clk 0:02:59]} 3. g3 {[%clk 0:03:01.1]} 3... d5 {[%clk 0:02:56.1]} 4.
cxd5 {[%clk 0:03:00.5]} 4... Nxd5 {[%clk 0:02:57]} 5. Bg2 {[%clk 0:03:01]} 5...
Nc6 {[%clk 0:02:57.3]} 6. O-O {[%clk 0:03:01.1]} 6... e5 {[%clk 0:02:56.7]} 7.
Nc3 {[%clk 0:03:00.1]} 7... Nc7 {[%clk 0:02:57.2]} 8. d3 {[%clk 0:02:59.2]} 8...
Be7 {[%clk 0:02:55]} 9. a3 {[%clk 0:02:59.2]} 9... O-O {[%clk 0:02:51.3]} 10.
Nd2 {[%clk 0:02:59]} 10... Be6 {[%clk 0:02:46.6]} 11. Nc4 {[%clk 0:02:57.2]}
11... f6 {[%clk 0:02:38.9]} 12. b4 {[%clk 0:02:49.4]} 12... cxb4 {[%clk
0:02:35.5]} 13. axb4 {[%clk 0:02:50.3]} 13... Bxb4 {[%clk 0:02:33.9]} 14. Bb2
{[%clk 0:02:48.4]} 14... Nd5 {[%clk 0:02:12.6]} 15. Ne4 {[%clk 0:02:39.8]} 15...
b5 {[%clk 0:02:04.8]} 16. Ne3 {[%clk 0:02:32.8]} 16... f5 {[%clk 0:01:42.3]} 17.
Nd2 {[%clk 0:02:28.3]} 17... Qd7 {[%clk 0:01:32.3]} 18. Rc1 {[%clk 0:02:15.3]}
18... Rac8 {[%clk 0:01:25.1]} 19. Nf3 {[%clk 0:02:07.2]} 19... Qd6 {[%clk
0:01:11.4]} 20. Ng5 {[%clk 0:01:38.5]} 20... Nxe3 {[%clk 0:01:10.1]} 21. fxe3
{[%clk 0:01:39.4]} 21... Bd5 {[%clk 0:01:10.4]} 22. e4 {[%clk 0:01:22]} 22...
fxe4 {[%clk 0:01:10.3]} 23. Rxf8+ {[%clk 0:01:18]} 23... Rxf8 {[%clk 0:00:42.1]}
24. dxe4 {[%clk 0:01:15.9]} 24... Bc4 {[%clk 0:00:41.4]} 25. Qc2 {[%clk
0:01:04.6]} 25... Bd2 {[%clk 0:00:33.8]} 26. Nf3 {[%clk 0:01:00.8]} 26... Bxc1
{[%clk 0:00:32.3]} 27. Qxc1 {[%clk 0:00:57.5]} 27... Bxe2 {[%clk 0:00:26.8]} 28.
Nd2 {[%clk 0:00:47.8]} 28... Nd4 {[%clk 0:00:21.8]} 29. Kh1 {[%clk 0:00:46.2]}
29... h6 {[%clk 0:00:18.9]} 30. Qa1 {[%clk 0:00:38.5]} 30... a6 {[%clk
0:00:18.1]} 31. Bc3 {[%clk 0:00:33.3]} 31... Qf6 {[%clk 0:00:16]} 32. Bb4 {[%clk
0:00:28.4]} 32... Nc2 {[%clk 0:00:14.3]} 33. Qa2+ {[%clk 0:00:27.3]} 33... Qf7
{[%clk 0:00:04]} 34. Qxc2 {[%clk 0:00:26.2]} 34... Rd8 {[%clk 0:00:02.4]} 35. h3
{[%clk 0:00:19.9]} 35... Bd3 {[%clk 0:00:02.8]} 36. Qc3 {[%clk 0:00:18.4]} 36...
Qe6 {[%clk 0:00:02.1]} 37. Kh2 {[%clk 0:00:18.1]} 37... Kh7 {[%clk 0:00:01.9]}
38. Nb3 {[%clk 0:00:17.2]} 1-0

[Event "*** SCC Grand Prix: Titled Tuesday Blitz"]
[Site "Chess.com"]
[Date "2020.09.08"]
[Round "2"]
[White "skoularikii"]
[Black "The_Machine04"]
[Result "1-0"]
[WhiteElo "2499"]
[BlackElo "2281"]
[TimeControl "180+1"]
[EndTime "10:18:02 PDT"]
[Termination "skoularikii won on time"]

1. e4 {[%clk 0:03:00.9]} 1... d6 {[%clk 0:02:57.3]} 2. d4 {[%clk 0:03:00.6]}
2... Nf6 {[%clk 0:02:54]} 3. Bd3 {[%clk 0:02:58.9]} 3... e5 {[%clk 0:02:53.7]}
4. Ne2 {[%clk 0:02:56.7]} 4... Nc6 {[%clk 0:02:52.7]} 5. c3 {[%clk 0:02:54.7]}
5... g6 {[%clk 0:02:51.1]} 6. O-O {[%clk 0:02:54.3]} 6... Bg7 {[%clk 0:02:51.2]}
7. h3 {[%clk 0:02:54.1]} 7... O-O {[%clk 0:02:51]} 8. Nd2 {[%clk 0:02:54.7]}
8... Re8 {[%clk 0:02:51.1]} 9. d5 {[%clk 0:02:52.7]} 9... Ne7 {[%clk 0:02:50.2]}
10. b4 {[%clk 0:02:36.5]} 10... a5 {[%clk 0:02:48]} 11. a4 {[%clk 0:02:31.9]}
11... axb4 {[%clk 0:02:47.3]} 12. cxb4 {[%clk 0:02:31.8]} 12... c6 {[%clk
0:02:48.2]} 13. dxc6 {[%clk 0:02:18.3]} 13... bxc6 {[%clk 0:02:49.1]} 14. Bb2
{[%clk 0:02:13.1]} 14... Be6 {[%clk 0:02:34.8]} 15. Qc2 {[%clk 0:02:10.8]} 15...
Qc8 {[%clk 0:02:15.2]} 16. Nc4 {[%clk 0:01:58.2]} 16... Bxc4 {[%clk 0:01:53.2]}
17. Bxc4 {[%clk 0:01:56.1]} 17... d5 {[%clk 0:01:53.7]} 18. Bd3 {[%clk
0:01:47.7]} 18... Qb8 {[%clk 0:01:38.4]} 19. Rfb1 {[%clk 0:01:36.5]} 19... dxe4
{[%clk 0:01:27.4]} 20. Bxe4 {[%clk 0:01:27.4]} 20... Qxb4 {[%clk 0:01:24.8]} 21.
Bd4 {[%clk 0:01:10.3]} 21... Qa5 {[%clk 0:00:51.3]} 22. Bb6 {[%clk 0:01:04.7]}
22... Qa6 {[%clk 0:00:47]} 23. Bc5 {[%clk 0:01:02.7]} 23... Nxe4 {[%clk
0:00:41.2]} 24. Qxe4 {[%clk 0:01:02.3]} 24... Nd5 {[%clk 0:00:33.6]} 25. Rb3
{[%clk 0:00:55.5]} 25... Reb8 {[%clk 0:00:27.2]} 26. Rab1 {[%clk 0:00:40.1]}
26... Rxb3 {[%clk 0:00:26.6]} 27. Rxb3 {[%clk 0:00:40.2]} 27... h6 {[%clk
0:00:23.8]} 28. Ra3 {[%clk 0:00:37.2]} 28... Qa5 {[%clk 0:00:19.1]} 29. Qc2
{[%clk 0:00:28]} 29... Qe1+ {[%clk 0:00:12.3]} 30. Kh2 {[%clk 0:00:28.5]} 30...
Rb8 {[%clk 0:00:08.7]} 31. a5 {[%clk 0:00:27.6]} 31... Rb1 {[%clk 0:00:08.4]}
32. a6 {[%clk 0:00:27.8]} 32... Qh1+ {[%clk 0:00:07.5]} 33. Kg3 {[%clk
0:00:27.9]} 33... f5 {[%clk 0:00:02]} 34. a7 {[%clk 0:00:19.2]} 34... f4+ {[%clk
0:00:02.5]} 35. Kf3 {[%clk 0:00:19]} 35... Nc7 {[%clk 0:00:02]} 36. Qxg6 {[%clk
0:00:18]} 1-0

[Event "*** SCC Grand Prix: Titled Tuesday Blitz"]
[Site "Chess.com"]
[Date "2020.09.08"]
[Round "2"]
[White "gmpeter008"]
[Black "ChessLover0108"]
[Result "0-1"]
[WhiteElo "2348"]
[BlackElo "2659"]
[TimeControl "180+1"]
[EndTime "10:18:03 PDT"]
[Termination "ChessLover0108 won by checkmate"]

1. d4 {[%clk 0:03:00.9]} 1... Nf6 {[%clk 0:02:53.8]} 2. Bf4 {[%clk 0:02:59.6]}
2... d6 {[%clk 0:02:49.4]} 3. Nf3 {[%clk 0:02:57.2]} 3... g6 {[%clk 0:02:41.9]}
4. g3 {[%clk 0:02:57.1]} 4... Nbd7 {[%clk 0:02:33.8]} 5. Bg2 {[%clk 0:02:56.8]}
5... Bg7 {[%clk 0:02:33.7]} 6. O-O {[%clk 0:02:56.1]} 6... O-O {[%clk
0:02:34.6]} 7. c4 {[%clk 0:02:53.6]} 7... c5 {[%clk 0:02:29.4]} 8. Nc3 {[%clk
0:02:52.9]} 8... cxd4 {[%clk 0:02:26.9]} 9. Nd5 {[%clk 0:02:42.8]} 9... e5
{[%clk 0:01:47.1]} 10. Bg5 {[%clk 0:02:41.1]} 10... h6 {[%clk 0:01:37.3]} 11.
Bh4 {[%clk 0:02:37.9]} 11... g5 {[%clk 0:01:25.6]} 12. Nxg5 {[%clk 0:02:36.8]}
12... hxg5 {[%clk 0:01:26.5]} 13. Bxg5 {[%clk 0:02:37.3]} 13... Qa5 {[%clk
0:01:21.8]} 14. Ne7+ {[%clk 0:02:32.4]} 14... Kh8 {[%clk 0:01:20.9]} 15. e3
{[%clk 0:02:02]} 15... Nh7 {[%clk 0:00:54.7]} 16. Qh5 {[%clk 0:01:54.3]} 16...
e4 {[%clk 0:00:33.4]} 17. Nd5 {[%clk 0:00:47]} 17... f5 {[%clk 0:00:30.5]} 18.
Be7 {[%clk 0:00:35.5]} 18... Rg8 {[%clk 0:00:20.2]} 19. Nf4 {[%clk 0:00:34.3]}
19... Bf6 {[%clk 0:00:13.8]} 20. Bxd6 {[%clk 0:00:18.7]} 20... d3 {[%clk
0:00:13.4]} 21. Bxe4 {[%clk 0:00:18.3]} 21... Nc5 {[%clk 0:00:07.7]} 22. Bd5
{[%clk 0:00:17.3]} 22... Bd7 {[%clk 0:00:04.7]} 23. Bxg8 {[%clk 0:00:16.4]}
23... Rxg8 {[%clk 0:00:05.6]} 24. b4 {[%clk 0:00:15.6]} 24... Qxb4 {[%clk
0:00:05.3]} 25. Rab1 {[%clk 0:00:16]} 25... Qxc4 {[%clk 0:00:03]} 26. Rfc1
{[%clk 0:00:14.3]} 26... Qe4 {[%clk 0:00:03.2]} 27. Rxc5 {[%clk 0:00:12.2]}
27... d2 {[%clk 0:00:03.1]} 28. Rc7 {[%clk 0:00:09.2]} 28... Qxb1+ {[%clk
0:00:02.4]} 29. Kg2 {[%clk 0:00:09.6]} 29... d1=Q {[%clk 0:00:02.3]} 30. Ng6+
{[%clk 0:00:08.6]} 30... Rxg6 {[%clk 0:00:02.8]} 31. Qxg6 {[%clk 0:00:07]} 31...
Qf1+ {[%clk 0:00:03.4]} 32. Kf3 {[%clk 0:00:07.4]} 32... Qe4# {[%clk 0:00:04.3]}
0-1